[Event "Chess Festival Groningen 2023 | A"]
[Site "Groningen, Netherlands"]
[Date "2023.12.26"]
[Round "5.8"]
[White "Krasenkow, Michal"]
[Black "Lambrechts, Koen"]
[Result "1/2-1/2"]
[TimeControl "90min/40moves + 30min + 30sec/move"]
[WhiteElo "2532"]
[BlackElo "2290"]

1. d4 {[%clk 01:30:55]} {[%emt 00:00:04]} e6 {[%clk 01:30:44]} {[%emt
00:00:17]} 2. c4 {[%clk 01:31:20]} {[%emt 00:00:05]} b6 {[%clk 01:30:55]}
{[%emt 00:00:19]} 3. e4 {[%clk 01:31:42]} {[%emt 00:00:08]} Bb7 {[%clk
01:30:33]} {[%emt 00:00:52]} 4. Bd3 {[%clk 01:32:00]} {[%emt 00:00:11]} Nc6
{[%clk 01:30:46]} {[%emt 00:00:17]} 5. Nf3 {[%clk 01:32:04]} {[%emt 00:00:26]}
Nb4 {[%clk 01:31:01]} {[%emt 00:00:16]} 6. O-O {[%clk 01:32:11]} {[%emt
00:00:23]} Nxd3 {[%clk 01:24:21]} {[%emt 00:07:10]} 7. Qxd3 {[%clk 01:32:21]}
{[%emt 00:00:20]} d6 {[%clk 01:24:21]} {[%emt 00:00:30]} 8. Nc3 {[%clk
01:30:46]} {[%emt 00:02:05]} Be7 {[%clk 01:23:16]} {[%emt 00:01:35]} 9. Bd2
{[%clk 01:21:50]} {[%emt 00:09:25]} Nf6 {[%clk 01:21:32]} {[%emt 00:02:15]} 10.
d5 {[%clk 01:20:27]} {[%emt 00:01:54]} Nd7 {[%clk 01:03:23]} {[%emt 00:18:38]}
11. b4 {[%clk 01:19:01]} {[%emt 00:01:56]} e5 {[%clk 01:01:29]} {[%emt
00:02:24]} 12. Na4 {[%clk 01:13:12]} {[%emt 00:06:19]} O-O {[%clk 00:58:36]}
{[%emt 00:03:23]} 13. Rfc1 {[%clk 01:12:17]} {[%emt 00:01:25]} Qe8 {[%clk
00:53:39]} {[%emt 00:05:27]} 14. Be3 {[%clk 01:06:11]} {[%emt 00:06:36]} f5
{[%clk 00:43:18]} {[%emt 00:10:51]} 15. exf5 {[%clk 01:06:21]} {[%emt
00:00:20]} Qf7 {[%clk 00:42:35]} {[%emt 00:01:12]} 16. Ng5 {[%clk 00:58:16]}
{[%emt 00:08:36]} Bxg5 {[%clk 00:41:57]} {[%emt 00:01:09]} 17. Bxg5 {[%clk
00:58:44]} Qxf5 {[%clk 00:40:02]} {[%emt 00:02:25]} 18. Qxf5 {[%clk 00:59:08]}
{[%emt 00:00:07]} Rxf5 {[%clk 00:40:24]} {[%emt 00:00:07]} 19. Be3 {[%clk
00:59:34]} {[%emt 00:00:03]} Rf7 {[%clk 00:31:59]} {[%emt 00:08:56]} 20. Nc3
{[%clk 00:59:26]} {[%emt 00:00:38]} Nf6 {[%clk 00:31:30]} {[%emt 00:01:00]} 21.
a4 {[%clk 00:56:51]} {[%emt 00:03:05]} a5 {[%clk 00:30:48]} {[%emt 00:01:10]}
22. bxa5 {[%clk 00:57:14]} {[%emt 00:00:08]} Rxa5 {[%clk 00:31:10]} {[%emt
00:00:09]} 23. Nb5 {[%clk 00:57:31]} {[%emt 00:00:13]} Ne8 {[%clk 00:17:45]}
{[%emt 00:13:55]} 24. Rf1 {[%clk 00:51:31]} {[%emt 00:06:29]} Ra8 {[%clk
00:14:10]} {[%emt 00:04:05]} 25. a5 {[%clk 00:41:03]} {[%emt 00:10:58]} Rxa5
{[%clk 00:13:30]} {[%emt 00:01:11]} 26. Rxa5 {[%clk 00:41:16]} {[%emt
00:00:17]} bxa5 {[%clk 00:13:54]} {[%emt 00:00:05]} 27. Ra1 {[%clk 00:37:18]}
{[%emt 00:04:28]} c6 {[%clk 00:12:32]} {[%emt 00:01:52]} 28. dxc6 {[%clk
00:37:37]} {[%emt 00:00:12]} Bxc6 {[%clk 00:12:57]} {[%emt 00:00:05]} 29. Rxa5
{[%clk 00:37:56]} {[%emt 00:00:11]} Rb7 {[%clk 00:12:50]} {[%emt 00:00:36]} 30.
h3 {[%clk 00:26:54]} {[%emt 00:11:32]} Kf7 {[%clk 00:12:44]} {[%emt 00:00:36]}
31. f4 {[%clk 00:12:55]} {[%emt 00:14:29]} exf4 {[%clk 00:09:04]} {[%emt
00:04:10]} 32. Bxf4 {[%clk 00:13:19]} {[%emt 00:00:06]} Bxb5 {[%clk 00:09:25]}
{[%emt 00:00:09]} 33. cxb5 {[%emt 00:00:36]} 1/2-1/2

[Event "Chess Festival Groningen 2023 | A"]
[Site "Groningen, Netherlands"]
[Date "2023.12.26"]
[Round "5.9"]
[White "Slagboom, Leandro"]
[Black "Lahaye, Rick"]
[Result "0-1"]
[TimeControl "90min/40moves + 30min + 30sec/move"]
[WhiteElo "2304"]
[BlackElo "2439"]

1. e4 {[%clk 01:30:57]} {[%emt 00:00:03]} c5 {[%clk 01:30:43]} {[%emt
00:00:18]} 2. Nf3 {[%clk 01:31:21]} {[%emt 00:00:06]} d6 {[%clk 01:30:59]}
{[%emt 00:00:14]} 3. d4 {[%clk 01:31:45]} {[%emt 00:00:06]} cxd4 {[%clk
01:31:07]} {[%emt 00:00:13]} 4. Nxd4 {[%clk 01:32:12]} {[%emt 00:00:12]} Nf6
{[%clk 01:31:24]} {[%emt 00:00:13]} 5. Nc3 {[%clk 01:32:36]} {[%emt 00:00:06]}
Bd7 {[%clk 01:31:15]} {[%emt 00:00:38]} 6. f3 {[%clk 01:32:11]} {[%emt
00:00:55]} e5 {[%clk 01:30:59]} {[%emt 00:00:47]} 7. Nb3 {[%clk 01:32:35]}
{[%emt 00:00:06]} Be7 {[%clk 01:31:10]} {[%emt 00:00:19]} 8. Be3 {[%clk
01:32:20]} {[%emt 00:00:45]} O-O {[%clk 01:31:16]} {[%emt 00:00:23]} 9. Qd2
{[%clk 01:32:28]} {[%emt 00:00:22]} a5 {[%clk 01:30:59]} {[%emt 00:00:47]} 10.
a4 {[%clk 01:32:38]} {[%emt 00:00:21]} Na6 {[%clk 01:30:03]} {[%emt 00:01:26]}
11. O-O-O {[%clk 01:31:43]} {[%emt 00:01:24]} Nb4 {[%clk 01:28:23]} {[%emt
00:02:10]} 12. g4 {[%clk 01:27:56]} {[%emt 00:04:17]} Be6 {[%clk 01:25:10]}
{[%emt 00:03:43]} 13. Kb1 {[%clk 01:25:21]} {[%emt 00:03:05]} Rc8 {[%clk
01:10:15]} {[%emt 00:15:25]} 14. g5 {[%clk 01:24:23]} {[%emt 00:01:29]} Nh5
{[%clk 01:02:11]} {[%emt 00:08:34]} 15. Rg1 {[%clk 01:21:09]} {[%emt 00:03:43]}
Qc7 {[%clk 00:51:38]} {[%emt 00:11:04]} 16. Qf2 {[%clk 01:16:48]} {[%emt
00:04:51]} Bd8 {[%clk 00:50:58]} {[%emt 00:01:10]} 17. Rd2 {[%clk 01:10:49]}
{[%emt 00:06:29]} f5 {[%clk 00:32:46]} {[%emt 00:18:41]} 18. Nb5 {[%clk
00:55:10]} {[%emt 00:16:10]} Qe7 {[%clk 00:33:06]} {[%emt 00:00:10]} 19. Nxd6
{[%clk 00:52:27]} {[%emt 00:03:13]} Rxc2 {[%clk 00:31:19]} {[%emt 00:02:18]} 20.
Rxc2 {[%clk 00:47:51]} {[%emt 00:05:05]} Qxd6 {[%clk 00:27:41]} {[%emt
00:04:08]} 21. Rd2 {[%clk 00:33:24]} {[%emt 00:14:57]} Qc7 {[%clk 00:28:01]}
{[%emt 00:00:10]} 22. Nc1 {[%clk 00:28:34]} {[%emt 00:05:20]} fxe4 {[%clk
00:28:19]} {[%emt 00:00:11]} 23. Qh4 {[%clk 00:24:29]} {[%emt 00:04:35]} exf3
{[%clk 00:20:41]} {[%emt 00:08:09]} 24. Qxh5 {[%clk 00:19:57]} {[%emt
00:05:01]} f2 {[%clk 00:18:05]} {[%emt 00:03:06]} 25. Bxf2 {[%clk 00:19:12]}
{[%emt 00:01:16]} Bf5+ {[%clk 00:18:15]} {[%emt 00:00:20]} 26. Bd3 {[%clk
00:18:35]} {[%emt 00:01:07]} e4 {[%clk 00:18:04]} {[%emt 00:00:41]} 27. Qd1
{[%clk 00:05:50]} {[%emt 00:13:15]} exd3 {[%clk 00:17:53]} {[%emt 00:00:42]} 28.
Qb3+ {[%clk 00:05:54]} {[%emt 00:00:26]} Kh8 {[%clk 00:17:55]} {[%emt
00:00:27]} 29. Bd4 {[%clk 00:05:29]} {[%emt 00:00:54]} Qd7 {[%clk 00:15:22]}
{[%emt 00:03:04]} 30. Bc3 {[%clk 00:04:53]} {[%emt 00:01:06]} Nd5 {[%clk
00:11:47]} {[%emt 00:04:05]} 31. Rgd1 {[%clk 00:02:14]} {[%emt 00:03:08]} Bxg5
{[%clk 00:11:43]} {[%emt 00:00:33]} 32. Rxd3 {[%clk 00:02:13]} {[%emt
00:00:32]} Nxc3+ {[%clk 00:11:37]} {[%emt 00:00:37]} 33. Qxc3 {[%clk 00:02:31]}
{[%emt 00:00:12]} Bxc1 {[%clk 00:11:59]} {[%emt 00:00:07]} 34. Kxc1 {[%clk
00:02:39]} {[%emt 00:00:22]} Bxd3 {[%clk 00:11:46]} {[%emt 00:00:44]} 35. Qxd3
{[%clk 00:02:32]} {[%emt 00:00:37]} Qxa4 {[%clk 00:11:55]} {[%emt 00:00:21]} 36.
Kb1 {[%clk 00:01:13]} {[%emt 00:01:48]} Qf4 {[%clk 00:11:30]} {[%emt 00:00:55]}
37. h3 {[%clk 00:01:14]} {[%emt 00:00:29]} h6 {[%emt 00:00:57]} 38. Qb3 {[%clk
00:00:54]} Qf7 {[%clk 00:10:28]} {[%emt 00:01:55]} 39. Qa3 {[%clk 00:00:39]}
{[%emt 00:00:45]} b6 {[%clk 00:06:00]} {[%emt 00:04:59]} 40. Ka1 {[%clk
00:00:40]} {[%emt 00:00:29]} Qf3 {[%clk 00:05:44]} {[%emt 00:00:45]} 41. Qd6
{[%clk 00:30:00]} {[%emt 00:00:39]} Rf4 {[%clk 00:35:05]} {[%emt 00:01:09]} 42.
Qd7 {[%clk 00:29:50]} {[%emt 00:01:12]} Qb3 {[%clk 00:32:49]} {[%emt 00:02:46]}
0-1

[Event "Chess Festival Groningen 2023 | A"]
[Site "Groningen, Netherlands"]
[Date "2023.12.26"]
[Round "5.10"]
[White "Jin, Yueheng"]
[Black "Kollen, Zyon"]
[Result "1/2-1/2"]
[TimeControl "90min/40moves + 30min + 30sec/move"]
[WhiteElo "2398"]
[BlackElo "2318"]

1. d4 {[%clk 01:30:57]} {[%emt 00:00:02]} e6 {[%clk 01:30:55]} {[%emt
00:00:06]} 2. c4 {[%clk 01:31:24]} {[%emt 00:00:03]} Nf6 {[%clk 01:31:20]}
{[%emt 00:00:04]} 3. g3 {[%clk 01:31:52]} {[%emt 00:00:02]} d5 {[%clk
01:31:42]} {[%emt 00:00:08]} 4. Nf3 {[%clk 01:32:18]} {[%emt 00:00:03]} Be7
{[%clk 01:32:06]} {[%emt 00:00:05]} 5. Bg2 {[%clk 01:32:45]} {[%emt 00:00:04]}
O-O {[%clk 01:32:28]} {[%emt 00:00:08]} 6. O-O {[%clk 01:33:12]} {[%emt
00:00:03]} dxc4 {[%clk 01:32:54]} {[%emt 00:00:04]} 7. Qc2 {[%clk 01:33:20]}
{[%emt 00:00:22]} b6 {[%clk 01:32:57]} {[%emt 00:00:27]} 8. Ne5 {[%clk
01:28:40]} {[%emt 00:05:10]} Qxd4 {[%clk 01:32:29]} {[%emt 00:00:58]} 9. Bxa8
{[%clk 01:28:56]} {[%emt 00:00:14]} Qxe5 {[%clk 01:32:53]} {[%emt 00:00:07]} 10.
Bf3 {[%clk 01:28:13]} {[%emt 00:01:12]} Nd5 {[%clk 01:33:06]} {[%emt 00:00:16]}
11. Qxc4 {[%clk 01:24:31]} {[%emt 00:04:13]} Ba6 {[%clk 01:32:47]} {[%emt
00:00:49]} 12. Qe4 {[%clk 01:22:42]} {[%emt 00:02:19]} Qxe4 {[%clk 01:29:59]}
{[%emt 00:03:19]} 13. Bxe4 {[%clk 01:23:08]} {[%emt 00:00:04]} Rd8 {[%clk
01:30:23]} {[%emt 00:00:05]} 14. Re1 {[%clk 01:18:51]} {[%emt 00:04:47]} Nc6
{[%clk 01:08:12]} {[%emt 00:22:40]} 15. Kg2 {[%clk 00:56:27]} {[%emt 00:22:54]}
Bf6 {[%clk 00:36:02]} {[%emt 00:32:40]} 16. Na3 {[%clk 00:43:55]} {[%emt
00:13:02]} Nd4 {[%clk 00:31:53]} {[%emt 00:04:38]} 17. e3 {[%clk 00:41:56]}
{[%emt 00:02:31]} Ne2 {[%clk 00:29:27]} {[%emt 00:02:55]} 18. Rb1 {[%clk
00:42:01]} {[%emt 00:00:26]} Nb4 {[%clk 00:21:24]} {[%emt 00:08:33]} 19. Kf3
{[%clk 00:33:45]} {[%emt 00:08:46]} Nxa2 {[%clk 00:15:30]} {[%emt 00:06:24]} 20.
Rxe2 {[%clk 00:34:08]} {[%emt 00:00:07]} Bxe2+ {[%clk 00:15:52]} {[%emt
00:00:08]} 21. Kxe2 {[%clk 00:34:33]} {[%emt 00:00:04]} Nxc1+ {[%clk 00:16:15]}
{[%emt 00:00:06]} 22. Rxc1 {[%clk 00:35:01]} {[%emt 00:00:03]} Bxb2 {[%clk
00:16:37]} {[%emt 00:00:08]} 23. Rxc7 {[%clk 00:35:27]} {[%emt 00:00:03]} Bxa3
{[%clk 00:16:58]} {[%emt 00:00:10]} 24. Rxa7 {[%clk 00:35:55]} {[%emt
00:00:03]} Bc5 {[%clk 00:16:48]} {[%emt 00:00:39]} 25. Ra8 {[%clk 00:36:13]}
{[%emt 00:00:12]} Rxa8 {[%clk 00:14:51]} {[%emt 00:02:28]} 26. Bxa8 {[%clk
00:36:39]} {[%emt 00:00:04]} b5 {[%clk 00:14:53]} {[%emt 00:00:28]} 27. Bc6
{[%clk 00:36:53]} {[%emt 00:00:15]} b4 {[%clk 00:15:17]} {[%emt 00:00:06]} 28.
Ba4 {[%clk 00:37:21]} {[%emt 00:00:02]} g5 {[%clk 00:14:10]} {[%emt 00:01:37]}
29. g4 {[%clk 00:37:34]} {[%emt 00:00:17]} Kg7 {[%clk 00:13:39]} {[%emt
00:01:01]} 30. Kd3 {[%clk 00:37:27]} {[%emt 00:00:37]} f5 {[%clk 00:11:20]}
{[%emt 00:02:49]} 31. h3 {[%clk 00:36:48]} {[%emt 00:01:09]} Kf6 {[%clk
00:10:47]} {[%emt 00:01:04]} 32. f3 {[%clk 00:36:21]} {[%emt 00:00:56]} Ke5
{[%clk 00:09:10]} {[%emt 00:02:07]} 33. Bb3 {[%clk 00:36:45]} {[%emt 00:00:06]}
h6 {[%clk 00:08:55]} {[%emt 00:00:45]} 34. Ba4 {[%clk 00:37:06]} {[%emt
00:00:09]} Kf6 {[%clk 00:08:28]} {[%emt 00:00:56]} 35. Bb3 {[%clk 00:37:26]}
{[%emt 00:00:11]} e5 {[%clk 00:08:44]} {[%emt 00:00:14]} 36. e4 {[%clk
00:37:46]} {[%emt 00:00:10]} fxe4+ {[%clk 00:07:17]} {[%emt 00:01:57]} 37. fxe4
{[%clk 00:38:10]} {[%emt 00:00:06]} Bd4 {[%clk 00:06:37]} {[%emt 00:01:09]} 38.
Kc4 {[%clk 00:38:34]} {[%emt 00:00:07]} Bc3 {[%clk 00:06:53]} {[%emt 00:00:14]}
39. Kd5 {[%clk 00:38:56]} {[%emt 00:00:09]} Ke7 {[%clk 00:06:15]} {[%emt
00:01:07]} 40. Kc6 {[%clk 00:39:20]} {[%emt 00:00:06]} Bd4 {[%clk 00:06:22]}
{[%emt 00:00:21]} 1/2-1/2

[Event "Chess Festival Groningen 2023 | A"]
[Site "Groningen, Netherlands"]
[Date "2023.12.26"]
[Round "5.11"]
[White "Stremavicius, Pijus"]
[Black "Keuning, Selwin"]
[Result "1/2-1/2"]
[TimeControl "90min/40moves + 30min + 30sec/move"]
[WhiteElo "2367"]
[BlackElo "2139"]

1. d4 {[%clk 01:30:58]} {[%emt 00:00:02]} Nf6 {[%clk 01:30:52]} {[%emt
00:00:09]} 2. Nf3 {[%clk 01:31:20]} {[%emt 00:00:07]} d5 {[%clk 01:31:12]}
{[%emt 00:00:11]} 3. Bf4 {[%clk 01:31:45]} {[%emt 00:00:04]} c5 {[%clk
01:31:00]} {[%emt 00:00:44]} 4. e3 {[%clk 01:32:11]} {[%emt 00:00:04]} Nc6
{[%clk 01:31:22]} {[%emt 00:00:07]} 5. Nbd2 {[%clk 01:32:38]} {[%emt 00:00:03]}
Qb6 {[%clk 01:31:48]} {[%emt 00:00:05]} 6. dxc5 {[%clk 01:33:03]} {[%emt
00:00:04]} Qxb2 {[%clk 01:32:14]} {[%emt 00:00:03]} 7. Rb1 {[%clk 01:33:28]}
{[%emt 00:00:05]} Qc3 {[%clk 01:32:39]} {[%emt 00:00:04]} 8. Bb5 {[%clk
01:33:42]} {[%emt 00:00:18]} g6 {[%clk 01:33:06]} {[%emt 00:00:03]} 9. e4
{[%clk 01:26:37]} {[%emt 00:07:35]} dxe4 {[%clk 01:33:13]} {[%emt 00:00:23]} 10.
Be5 {[%clk 01:27:00]} {[%emt 00:00:06]} Qa5 {[%clk 01:33:41]} {[%emt 00:00:03]}
11. O-O {[%clk 01:27:16]} {[%emt 00:00:13]} exf3 {[%clk 01:33:56]} {[%emt
00:00:15]} 12. Bxc6+ {[%clk 01:27:29]} {[%emt 00:00:17]} bxc6 {[%clk 01:34:23]}
{[%emt 00:00:04]} 13. Qxf3 {[%clk 01:27:55]} {[%emt 00:00:04]} Nd5 {[%clk
01:34:27]} {[%emt 00:00:26]} 14. Bxh8 {[%clk 01:27:20]} {[%emt 00:01:06]} Qxd2
{[%clk 01:34:34]} {[%emt 00:00:22]} 15. c4 {[%clk 01:27:47]} {[%emt 00:00:03]}
f6 {[%clk 01:34:58]} {[%emt 00:00:05]} 16. cxd5 {[%clk 01:28:12]} {[%emt
00:00:06]} Qxd5 {[%clk 01:30:54]} {[%emt 00:04:34]} 17. Qxd5 {[%clk 01:28:07]}
{[%emt 00:00:34]} cxd5 {[%clk 01:31:20]} {[%emt 00:00:03]} 18. c6 {[%clk
01:28:32]} {[%emt 00:00:05]} Ba6 {[%clk 01:08:44]} {[%emt 00:23:07]} 19. Rfc1
{[%clk 01:28:39]} {[%emt 00:00:22]} Bc4 {[%clk 00:57:20]} {[%emt 00:11:55]} 20.
Rb7 {[%clk 01:27:20]} {[%emt 00:01:49]} Rc8 {[%clk 00:37:10]} {[%emt 00:20:40]}
21. Bxf6 {[%clk 01:27:27]} {[%emt 00:00:23]} Rxc6 {[%clk 00:33:33]} {[%emt
00:04:08]} 22. Bxe7 {[%clk 01:27:27]} {[%emt 00:00:29]} Bxe7 {[%clk 00:33:17]}
{[%emt 00:00:47]} 23. Re1 {[%clk 01:27:14]} {[%emt 00:00:42]} Be2 {[%clk
00:33:33]} {[%emt 00:00:14]} 24. Rxe7+ {[%clk 01:15:36]} {[%emt 00:12:08]} Kxe7
{[%clk 00:33:59]} {[%emt 00:00:05]} 25. Rxe2+ {[%clk 01:16:03]} {[%emt
00:00:03]} Kd6 {[%clk 00:33:09]} {[%emt 00:01:20]} 26. f4 {[%clk 01:16:20]}
{[%emt 00:00:13]} h5 {[%clk 00:29:37]} {[%emt 00:04:02]} 27. Kf2 {[%clk
01:15:49]} {[%emt 00:01:00]} d4 {[%clk 00:25:09]} {[%emt 00:04:58]} 28. Re5
{[%clk 01:14:09]} {[%emt 00:02:09]} Rc5 {[%clk 00:16:18]} {[%emt 00:09:22]} 29.
Re8 {[%clk 01:13:00]} {[%emt 00:01:39]} Kd5 {[%clk 00:13:53]} {[%emt 00:02:56]}
30. a4 {[%clk 01:10:40]} {[%emt 00:02:49]} Rc2+ {[%clk 00:03:38]} {[%emt
00:10:45]} 31. Kf3 {[%clk 01:10:29]} {[%emt 00:00:40]} Rc3+ {[%clk 00:02:59]}
{[%emt 00:01:10]} 32. Ke2 {[%clk 01:10:50]} {[%emt 00:00:09]} Rc2+ {[%clk
00:03:22]} {[%emt 00:00:08]} 33. Kd3 {[%clk 01:10:43]} {[%emt 00:00:36]} Rxg2
{[%clk 00:01:30]} {[%emt 00:02:22]} 34. Re5+ {[%clk 01:11:09]} {[%emt
00:00:04]} Kd6 {[%clk 00:01:53]} {[%emt 00:00:07]} 35. Kxd4 {[%clk 01:11:31]}
{[%emt 00:00:08]} Rxh2 {[%clk 00:00:46]} {[%emt 00:01:37]} 36. Rg5 {[%clk
01:11:36]} {[%emt 00:00:25]} Rd2+ {[%clk 00:00:45]} {[%emt 00:00:31]} 37. Ke3
{[%clk 01:11:43]} {[%emt 00:00:22]} Ra2 {[%clk 00:00:58]} {[%emt 00:00:18]} 38.
Rxg6+ {[%clk 01:12:11]} {[%emt 00:00:02]} Kd5 {[%clk 00:00:57]} {[%emt
00:00:31]} 39. Rg5+ {[%clk 01:12:16]} {[%emt 00:00:24]} Ke6 {[%clk 00:00:46]}
{[%emt 00:00:42]} 40. Ra5 {[%clk 01:11:56]} {[%emt 00:00:50]} h4 {[%clk
00:00:43]} {[%emt 00:00:33]} 41. Ke4 {[%clk 01:11:23]} {[%emt 00:01:03]} h3
{[%clk 00:27:09]} {[%emt 00:04:04]} 42. Ra6+ {[%clk 01:41:42]} {[%emt
00:00:10]} Kf7 {[%clk 00:25:57]} {[%emt 00:01:42]} 43. Rxa7+ {[%clk 01:40:39]}
{[%emt 00:01:33]} Kg8 {[%clk 00:25:50]} {[%emt 00:00:37]} 44. Ra8+ {[%clk
01:36:38]} {[%emt 00:04:31]} Kg7 {[%clk 00:26:14]} {[%emt 00:00:06]} 45. Ra7+
{[%clk 01:36:31]} {[%emt 00:00:38]} Kg8 {[%clk 00:26:41]} {[%emt 00:00:03]} 46.
Ra8+ {[%clk 01:36:08]} {[%emt 00:00:53]} 1/2-1/2

[Event "Chess Festival Groningen 2023 | A"]
[Site "Groningen, Netherlands"]
[Date "2023.12.26"]
[Round "5.12"]
[White "Palchuk, Andrii"]
[Black "Sanket, Chakravarty"]
[Result "1-0"]
[TimeControl "90min/40moves + 30min + 30sec/move"]
[BlackFideId "25032038"]
[WhiteElo "2328"]
[BlackElo "2361"]

1. d4 {[%clk 01:15:21]} {[%emt 00:15:38]} Nf6 {[%clk 01:30:33]} {[%emt
00:00:27]} 2. Nf3 {[%clk 01:15:32]} {[%emt 00:00:18]} g6 {[%clk 01:30:41]}
{[%emt 00:00:22]} 3. c4 {[%clk 01:15:07]} {[%emt 00:00:55]} Bg7 {[%clk
01:30:54]} {[%emt 00:00:17]} 4. g3 {[%clk 01:15:30]} {[%emt 00:00:08]} O-O
{[%clk 01:31:35]} {[%emt 00:00:19]} 5. Bg2 {[%clk 01:16:20]} {[%emt 00:00:10]}
d6 {[%clk 01:31:36]} {[%emt 00:00:28]} 6. O-O {[%clk 01:16:41]} {[%emt
00:00:09]} Nbd7 {[%clk 01:31:35]} {[%emt 00:00:32]} 7. Qc2 {[%clk 01:17:02]}
{[%emt 00:00:10]} e5 {[%clk 01:31:03]} {[%emt 00:01:02]} 8. Rd1 {[%clk
01:17:25]} {[%emt 00:00:06]} Qe7 {[%clk 01:30:42]} {[%emt 00:00:51]} 9. e4
{[%clk 01:12:51]} {[%emt 00:05:05]} exd4 {[%clk 01:30:39]} {[%emt 00:00:33]} 10.
Nxd4 {[%clk 01:13:14]} {[%emt 00:00:07]} Nc5 {[%clk 01:30:04]} {[%emt
00:01:04]} 11. Nc3 {[%clk 01:13:22]} {[%emt 00:00:22]} Re8 {[%clk 01:29:40]}
{[%emt 00:00:54]} 12. f3 {[%clk 01:06:37]} {[%emt 00:07:15]} c6 {[%clk
01:23:28]} {[%emt 00:06:43]} 13. b3 {[%clk 00:52:04]} {[%emt 00:15:03]} Nfd7
{[%clk 01:18:04]} {[%emt 00:05:53]} 14. h3 {[%clk 00:37:19]} {[%emt 00:15:16]}
h5 {[%clk 01:14:26]} {[%emt 00:04:08]} 15. Kh1 {[%clk 00:32:01]} {[%emt
00:05:49]} h4 {[%clk 01:11:54]} {[%emt 00:03:01]} 16. g4 {[%clk 00:30:52]}
{[%emt 00:01:39]} Ne5 {[%clk 01:05:08]} {[%emt 00:07:15]} 17. Be3 {[%clk
00:27:38]} {[%emt 00:03:44]} a5 {[%clk 01:01:57]} {[%emt 00:03:41]} 18. Bf2
{[%clk 00:24:46]} {[%emt 00:03:22]} a4 {[%clk 00:59:31]} {[%emt 00:02:57]} 19.
Rab1 {[%clk 00:20:05]} {[%emt 00:05:10]} axb3 {[%clk 00:58:33]} {[%emt
00:01:28]} 20. axb3 {[%clk 00:20:31]} {[%emt 00:00:05]} Bh6 {[%clk 00:50:06]}
{[%emt 00:08:56]} 21. Nce2 {[%clk 00:16:47]} {[%emt 00:04:15]} Ne6 {[%clk
00:48:42]} {[%emt 00:01:54]} 22. Nxe6 {[%clk 00:12:57]} {[%emt 00:04:20]} Bxe6
{[%clk 00:49:03]} {[%emt 00:00:09]} 23. Re1 {[%clk 00:10:42]} {[%emt 00:02:45]}
c5 {[%clk 00:40:47]} {[%emt 00:08:46]} 24. Nc3 {[%clk 00:09:09]} {[%emt
00:02:03]} Qf6 {[%clk 00:37:22]} {[%emt 00:03:53]} 25. Rf1 {[%clk 00:07:18]}
{[%emt 00:02:22]} Nc6 {[%clk 00:37:06]} {[%emt 00:00:45]} 26. Nb5 {[%clk
00:07:23]} {[%emt 00:00:25]} Nb4 {[%clk 00:35:52]} {[%emt 00:01:45]} 27. Qd1
{[%clk 00:07:48]} {[%emt 00:00:04]} Red8 {[%clk 00:35:39]} {[%emt 00:00:43]} 28.
Be1 {[%clk 00:06:39]} {[%emt 00:01:39]} Bf4 {[%clk 00:34:54]} {[%emt 00:01:15]}
29. Bc3 {[%clk 00:05:25]} {[%emt 00:01:45]} Be5 {[%clk 00:33:53]} {[%emt
00:01:30]} 30. Bd2 {[%clk 00:05:50]} {[%emt 00:00:04]} Nd3 {[%clk 00:32:26]}
{[%emt 00:01:57]} 31. g5 {[%clk 00:06:06]} {[%emt 00:00:15]} Qe7 {[%clk
00:21:02]} {[%emt 00:11:54]} 32. f4 {[%clk 00:06:27]} {[%emt 00:00:09]} Bd4
{[%clk 00:20:50]} {[%emt 00:00:41]} 33. Qf3 {[%clk 00:05:26]} {[%emt 00:01:31]}
Nf2+ {[%clk 00:19:13]} {[%emt 00:02:08]} 34. Kh2 {[%clk 00:04:28]} {[%emt
00:01:28]} Bxh3 {[%clk 00:17:48]} {[%emt 00:01:55]} 35. Nxd4 {[%clk 00:04:26]}
{[%emt 00:00:33]} Bxg2 {[%clk 00:18:13]} {[%emt 00:00:05]} 36. Qxg2 {[%clk
00:04:16]} {[%emt 00:00:40]} Nxe4 {[%clk 00:18:23]} {[%emt 00:00:20]} 37. Rbe1
{[%clk 00:03:56]} {[%emt 00:00:50]} cxd4 {[%clk 00:18:04]} {[%emt 00:00:48]} 38.
Rxe4 {[%clk 00:03:54]} {[%emt 00:00:33]} Qc7 {[%clk 00:18:18]} {[%emt
00:00:16]} 39. Rxd4 {[%clk 00:04:06]} {[%emt 00:00:18]} Qb6 {[%clk 00:18:42]}
{[%emt 00:00:05]} 40. Rd3 {[%clk 00:03:45]} {[%emt 00:00:51]} Ra2 {[%clk
00:18:55]} {[%emt 00:00:17]} 41. Rf2 {[%clk 00:02:16]} {[%emt 00:02:00]} Ra3
{[%clk 00:16:00]} {[%emt 00:03:25]} 42. Qf3 {[%clk 00:27:31]} {[%emt 00:05:14]}
Re8 {[%clk 00:45:16]} {[%emt 00:01:14]} 43. f5 {[%clk 00:24:52]} {[%emt
00:03:09]} d5 {[%clk 00:40:05]} {[%emt 00:05:41]} 44. fxg6 {[%clk 00:24:39]}
{[%emt 00:00:44]} Qd6+ {[%clk 00:40:05]} {[%emt 00:00:30]} 45. Qf4 {[%clk
00:23:25]} {[%emt 00:01:44]} Qxg6 {[%clk 00:39:10]} {[%emt 00:01:25]} 46. Rxd5
{[%clk 00:23:12]} {[%emt 00:00:44]} Rxb3 {[%clk 00:39:33]} {[%emt 00:00:07]} 47.
Rd6 {[%clk 00:23:32]} {[%emt 00:00:09]} Qg7 {[%clk 00:39:27]} {[%emt 00:00:36]}
48. Rf6 {[%clk 00:21:53]} {[%emt 00:02:09]} Re7 {[%clk 00:39:52]} {[%emt
00:00:05]} 49. Qb8+ {[%clk 00:21:20]} {[%emt 00:01:04]} Kh7 {[%clk 00:40:04]}
{[%emt 00:00:18]} 50. Rh6+ {[%clk 00:21:33]} {[%emt 00:00:17]} 1-0